[Event "EYTCC Open U18 2022"]
[Site "Thessaloniki"]
[Date "2022.07.12"]
[Round "1.16"]
[White "Pasztor, Balazs"]
[Black "Skrbec, Leon"]
[Result "1/2-1/2"]
[ECO "C67"]
[WhiteElo "2336"]
[BlackElo "2103"]
[Annotator "ChessBase"]
[PlyCount "99"]
[EventDate "2022.07.12"]
[EventType "team-tourn"]
[EventCountry "GRE"]
[SourceTitle "playchess.com"]
[Source "ChessBase"]
[SourceQuality "1"]
[WhiteTeam "Hungary"]
[BlackTeam "Slovenia"]
[WhiteTeamCountry "HUN"]
[BlackTeamCountry "SLO"]
[TimeControl "40/5400+30:1800+30"]

1. e4 {[%emt 0:00:05]} e5 {[%emt 0:00:11]} 2. Nf3 {[%emt 0:00:07]} Nc6 {[%emt 0:00:05]} 3. Bb5 {[%emt 0:00:08]} Nf6 {[%emt 0:00:13]} 4. O-O {[%emt 0:00:48]} Nxe4 {[%emt 0:00:26]} 5. Re1 {[%emt 0:00:38]} Nd6 {[%emt 0:00:15]} 6. Nxe5 {[%emt 0:00:09]} Be7 {[%emt 0:00:38]} 7. Bf1 {[%emt 0:00:08]} Nf5 {[%emt 0:01:02]} 8. Nf3 {[%emt 0:00:08]} O-O {[%emt 0:00:44]} 9. d4 {[%emt 0:00:07]} d5 {[%emt 0:00:14]} 10. Nc3 {[%emt 0:02:12]} Bf6 {[%emt 0:02:40]} 11. Ne2 {[%emt 0:00:25]} Re8 {[%emt 0:04:46]} 12. c3 {[%emt 0:04:00]} g6 {[%emt 0:08:57]} 13. h3 {[%emt 0:07:02]} Nce7 {[%emt 0:11:06]} 14. g4 {[%emt 0:12:05]} Nd6 {[%emt 0:00:25]} 15. Ng3 {[%emt 0:02:19]} Bg7 {[%emt 0:02:46]} 16. Bf4 {[%emt 0:06:50]} b6 {[%emt 0:09:41]} 17. b4 {[%emt 0:08:08]} Bb7 {[%emt 0:03:13]} 18. Qb3 {[%emt 0:10:17]} Nec8 {[%emt 0:14:04]} 19. Be5 {[%emt 0:11:28]} Ne4 {[%emt 0:05:37]} 20. Nxe4 dxe4 {[%emt 0:00:12]} 21. Bc4 {[%emt 0:10:07]} Rf8 {[%emt 0:02:47]} 22. Nh2 {[%emt 0:01:35]} Qd7 {[%emt 0:12:10]} 23. b5 {[%emt 0:04:02]} Nd6 {[%emt 0:04:57]} 24. Bf1 {[%emt 0:01:35]} Rae8 {[%emt 0:04:52]} 25. Bf4 {[%emt 0:01:57]} Kh8 {[%emt 0:02:04]} 26. Rad1 {[%emt 0:02:04]} h6 {[%emt 0:03:53]} 27. c4 {[%emt 0:03:23]} g5 {[%emt 0:00:26]} 28. Bc1 {[%emt 0:00:57]} c6 {[%emt 0:01:43]} 29. a4 {[%emt 0:00:58]} c5 {[%emt 0:02:14]} 30. dxc5 {[%emt 0:00:40]} bxc5 {[%emt 0:00:04]} 31. Be3 {[%emt 0:02:26]} Qc7 {[%emt 0:00:19]} 32. Qa3 {[%emt 0:01:26]} Re5 {[%emt 0:01:35]} 33. Rd2 {[%emt 0:01:20]} Bc8 {[%emt 0:00:32]} 34. Red1 {[%emt 0:01:17]} Nb7 {[%emt 0:00:06]} 35. a5 {[%emt 0:02:28]} Nxa5 {[%emt 0:01:31]} 36. Ra2 {[%emt 0:00:53]} Nb7 {[%emt 0:00:07]} 37. Qxa7 {[%emt 0:00:13]} f5 {[%emt 0:00:45]} 38. gxf5 {[%emt 0:01:05]} Rexf5 {[%emt 0:00:48]} 39. Bg2 {[%emt 0:00:50]} Re5 {[%emt 0:01:11]} 40. Rad2 {[%emt 0:00:00]} Rf7 {[%emt 0:00:00]} 41. Rd5 {[%emt 0:14:48]} Be6 {[%emt 0:03:35]} 42. Rxe5 {[%emt 0:00:46]} Qxe5 {[%emt 0:00:40]} 43. Ng4 {[%emt 0:03:01]} Qf5 {[%emt 0:00:15]} 44. Qa8+ {[%emt 0:01:03]} Kh7 {[%emt 0:00:13]} 45. Qe8 {[%emt 0:04:18]} h5 {[%emt 0:03:32]} 46. Nh2 {[%emt 0:01:06]} Bd4 {[%emt 0:09:00]} 47. Qc6 {[%emt 0:03:00]} Kg7 {[%emt 0:03:51]} 48. Rxd4 {[%emt 0:04:06]} cxd4 {[%emt 0:00:06]} 49. Bxd4+ {[%emt 0:00:06]} Kf8 {[%emt 0:00:38]} 50. Nf1 {[%emt 0:02:08]} 1/2-1/2

[Event "EYTCC Open U18 2022"]
[Site "Thessaloniki"]
[Date "2022.07.12"]
[Round "1.17"]
[White "Budisavljevic, Luka"]
[Black "Ratnesan, Ranesh"]
[Result "1-0"]
[ECO "D36"]
[WhiteElo "2511"]
[BlackElo "2269"]
[Annotator "ChessBase"]
[PlyCount "47"]
[EventDate "2022.07.12"]
[EventType "team-tourn"]
[EventCountry "GRE"]
[SourceTitle "playchess.com"]
[Source "ChessBase"]
[SourceQuality "1"]
[WhiteTeam "Serbia"]
[BlackTeam "England"]
[WhiteTeamCountry "SRB"]
[BlackTeamCountry "ENG"]
[TimeControl "40/5400+30:1800+30"]

1. d4 {[%emt 1:13:05]} d5 {[%emt 0:00:08]} 2. c4 {[%emt 0:00:14]} e6 {[%emt 0:00:11]} 3. Nc3 {[%emt 0:00:13]} Nf6 {[%emt 0:00:08]} 4. cxd5 {[%emt 0:00:10]} exd5 {[%emt 0:00:09]} 5. Bg5 {[%emt 0:00:16]} c6 {[%emt 0:00:11]} 6. e3 {[%emt 0:00:12]} Be7 {[%emt 0:00:14]} 7. Bd3 {[%emt 0:00:17]} Nbd7 {[%emt 0:00:19]} 8. Qc2 {[%emt 0:00:20]} h6 {[%emt 0:00:30]} 9. Bf4 {[%emt 0:02:10]} Nh5 {[%emt 0:03:07]} 10. Be5 {[%emt 0:01:21]} Nxe5 {[%emt 0:03:38]} 11. dxe5 {[%emt 0:00:05]} d4 {[%emt 0:00:44]} 12. exd4 {[%emt 0:00:54]} Qxd4 {[%emt 0:00:18]} 13. Nf3 {[%emt 0:08:01]} Qg4 {[%emt 0:01:34]} 14. O-O-O {[%emt 0:11:18]} Qxg2 {[%emt 0:06:41]} 15. Be4 {[%emt 0:01:51]} Bg4 {[%emt 0:00:47]} 16. Rdg1 {[%emt 0:08:15]} Qh3 {[%emt 0:01:07]} 17. Nd4 {[%emt 0:04:56]} O-O {[%emt 0:16:48]} 18. Kb1 {[%emt 0:02:19]} Bg5 {[%emt 0:11:35]} 19. Rg3 {[%emt 0:17:39]} Qh4 {[%emt 0:00:55]} 20. Rhg1 {[%emt 0:01:37]} f5 {[%emt 0:14:52]} 21. exf6 {[%emt 0:19:55]} Nxf6 22. Bf5 Bh5 {[%emt 0:04:27]} 23. Ne6 {[%emt 0:01:37]} Kh8 {[%emt 0:06:55]} 24. f4 {[%emt 0:00:35]} 1-0

[Event "EYTCC Open U18 2022"]
[Site "Thessaloniki"]
[Date "2022.07.12"]
[Round "1.18"]
[White "Stoica, Savas Marin"]
[Black "Tadic, Stefan"]
[Result "0-1"]
[ECO "A57"]
[WhiteElo "2092"]
[BlackElo "2356"]
[Annotator "ChessBase"]
[PlyCount "82"]
[EventDate "2022.07.12"]
[EventType "team-tourn"]
[EventCountry "GRE"]
[SourceTitle "playchess.com"]
[Source "ChessBase"]
[SourceQuality "1"]
[WhiteTeam "England"]
[BlackTeam "Serbia"]
[WhiteTeamCountry "ENG"]
[BlackTeamCountry "SRB"]
[TimeControl "40/5400+30:1800+30"]

1. d4 {[%emt 0:00:06]} Nf6 {[%emt 0:00:56]} 2. c4 {[%emt 0:00:06]} c5 {[%emt 0:01:18]} 3. d5 {[%emt 0:00:05]} b5 {[%emt 0:00:51]} 4. cxb5 {[%emt 0:00:04]} a6 {[%emt 0:00:06]} 5. f3 {[%emt 0:00:05]} g6 {[%emt 0:03:58]} 6. e4 {[%emt 0:00:47]} Bg7 {[%emt 0:03:01]} 7. e5 {[%emt 0:00:07]} Ng8 {[%emt 0:05:23]} 8. f4 {[%emt 0:00:13]} d6 {[%emt 0:02:27]} 9. Nf3 {[%emt 0:00:05]} Nh6 {[%emt 0:05:41]} 10. Nc3 {[%emt 0:00:58]} O-O {[%emt 0:05:22]} 11. Be2 {[%emt 0:08:19]} axb5 {[%emt 0:02:48]} 12. Bxb5 {[%emt 0:00:15]} Bg4 {[%emt 0:09:54]} 13. O-O {[%emt 0:24:55]} Nf5 {[%emt 0:07:36]} 14. h3 {[%emt 0:01:02]} Bxf3 {[%emt 0:00:00]} 15. Qxf3 {[%emt 0:06:58]} dxe5 {[%emt 0:04:28]} 16. d6 {[%emt 0:14:54]} Ra7 {[%emt 0:10:11]} 17. dxe7 {[%emt 0:01:27]} Rxe7 {[%emt 0:05:42]} 18. Rd1 {[%emt 0:13:20]} Nd4 {[%emt 0:00:19]} 19. Qd5 {[%emt 0:00:57]} Qxd5 {[%emt 0:03:40]} 20. Nxd5 {[%emt 0:00:09]} Rb7 {[%emt 0:00:22]} 21. Bd3 {[%emt 0:01:07]} Rd8 {[%emt 0:04:54]} 22. Nc3 {[%emt 0:06:27]} exf4 {[%emt 0:02:44]} 23. Bxf4 {[%emt 0:00:35]} Rxb2 {[%emt 0:00:14]} 24. Rac1 {[%emt 0:00:13]} Ne6 {[%emt 0:01:31]} 25. Bxb8 {[%emt 0:00:33]} Rdxb8 {[%emt 0:02:20]} 26. Bc4 {[%emt 0:00:50]} Nf4 {[%emt 0:02:03]} 27. Bf1 {[%emt 0:06:45]} Bxc3 {[%emt 0:12:03]} 28. Rxc3 {[%emt 0:00:04]} Rxg2+ {[%emt 0:00:04]} 29. Bxg2 {[%emt 0:00:46]} Ne2+ {[%emt 0:00:01]} 30. Kf2 {[%emt 0:00:16]} Nxc3 {[%emt 0:00:03]} 31. Rd2 {[%emt 0:00:13]} Re8 {[%emt 0:02:30]} 32. Rc2 {[%emt 0:00:18]} Nd1+ {[%emt 0:00:03]} 33. Kf3 {[%emt 0:00:53]} Re3+ {[%emt 0:00:40]} 34. Kf4 {[%emt 0:00:06]} Ra3 {[%emt 0:01:56]} 35. Bf3 {[%emt 0:02:44]} Nc3 {[%emt 0:00:57]} 36. h4 {[%emt 0:00:05]} Kg7 {[%emt 0:00:32]} 37. h5 {[%emt 0:00:11]} Kf6 {[%emt 0:00:36]} 38. hxg6 {[%emt 0:00:58]} hxg6 {[%emt 0:00:05]} 39. Bc6 {[%emt 0:00:37]} Nxa2 {[%emt 0:00:26]} 40. Rxc5 {[%emt 0:00:00]} Nb4 {[%emt 0:00:00]} 41. Be4 {[%emt 0:00:26]} Nd3+ {[%emt 0:00:08]} 0-1

[Event "EYTCC Open U18 2022"]
[Site "Thessaloniki"]
[Date "2022.07.12"]
[Round "1.19"]
[White "Ivanovic, Marko"]
[Black "Cont, Arya"]
[Result "1-0"]
[ECO "C42"]
[WhiteElo "2310"]
[BlackElo "1968"]
[Annotator "ChessBase"]
[PlyCount "69"]
[EventDate "2022.07.12"]
[EventType "team-tourn"]
[EventCountry "GRE"]
[SourceTitle "playchess.com"]
[Source "ChessBase"]
[SourceQuality "1"]
[WhiteTeam "Serbia"]
[BlackTeam "England"]
[WhiteTeamCountry "SRB"]
[BlackTeamCountry "ENG"]
[TimeControl "40/5400+30:1800+30"]

1. e4 {[%emt 0:00:03]} e5 {[%emt 0:00:03]} 2. Nf3 {[%emt 0:00:11]} Nf6 {[%emt 0:00:03]} 3. Nxe5 {[%emt 0:05:02]} d6 {[%emt 0:00:04]} 4. Nf3 {[%emt 0:00:04]} Nxe4 {[%emt 0:00:05]} 5. d4 {[%emt 0:03:33]} d5 {[%emt 0:00:04]} 6. Bd3 {[%emt 0:00:21]} Bd6 {[%emt 0:00:04]} 7. O-O {[%emt 0:00:09]} O-O {[%emt 0:00:07]} 8. Re1 {[%emt 0:00:11]} Bf5 {[%emt 0:00:49]} 9. c4 {[%emt 0:02:37]} c6 {[%emt 0:00:05]} 10. Nc3 {[%emt 0:18:25]} Nxc3 {[%emt 0:00:15]} 11. bxc3 {[%emt 0:00:05]} Bxd3 {[%emt 0:00:08]} 12. Qxd3 {[%emt 0:00:05]} dxc4 {[%emt 0:00:05]} 13. Qxc4 {[%emt 0:00:14]} Nd7 {[%emt 0:02:32]} 14. Bg5 {[%emt 0:02:39]} Qc7 {[%emt 0:02:37]} 15. Re4 {[%emt 0:06:43]} h6 {[%emt 0:32:26]} 16. Bh4 {[%emt 0:01:04]} Nb6 {[%emt 0:03:15]} 17. Qd3 {[%emt 0:04:12]} Rae8 {[%emt 0:06:35]} 18. Rae1 {[%emt 0:00:51]} Qd7 {[%emt 0:01:01]} 19. c4 {[%emt 0:16:59]} Bb4 {[%emt 0:08:43]} 20. R1e3 {[%emt 0:02:44]} Rxe4 21. Rxe4 {[%emt 0:00:08]} Re8 {[%emt 0:12:21]} 22. Ne5 {[%emt 0:16:09]} Qe6 {[%emt 0:03:41]} 23. f3 {[%emt 0:01:44]} f6 {[%emt 0:01:40]} 24. Qe2 {[%emt 0:07:16]} Qd6 {[%emt 0:04:43]} 25. Bf2 {[%emt 0:04:08]} fxe5 {[%emt 0:17:13]} 26. c5 {[%emt 0:00:07]} Qd8 {[%emt 0:00:20]} 27. cxb6 {[%emt 0:00:09]} Qxb6 {[%emt 0:00:03]} 28. dxe5 {[%emt 0:00:25]} c5 {[%emt 0:00:56]} 29. h3 {[%emt 0:01:54]} Qe6 {[%emt 0:00:47]} 30. f4 {[%emt 0:02:11]} Rd8 {[%emt 0:00:26]} 31. Qf3 {[%emt 0:02:37]} c4 {[%emt 0:02:24]} 32. f5 {[%emt 0:00:04]} Qc6 {[%emt 0:00:05]} 33. f6 {[%emt 0:01:31]} a5 {[%emt 0:02:02]} 34. Qg4 {[%emt 0:00:48]} Qd7 {[%emt 0:00:57]} 35. Rd4 {[%emt 0:00:44]} 1-0

[Event "EYTCC Open U18 2022"]
[Site "Thessaloniki"]
[Date "2022.07.12"]
[Round "1.20"]
[White "Dias, Savin"]
[Black "Ljepic, Andrej"]
[Result "1/2-1/2"]
[ECO "C10"]
[WhiteElo "1894"]
[BlackElo "2234"]
[Annotator "ChessBase"]
[PlyCount "63"]
[EventDate "2022.07.12"]
[EventType "team-tourn"]
[EventCountry "GRE"]
[SourceTitle "playchess.com"]
[Source "ChessBase"]
[SourceQuality "1"]
[WhiteTeam "England"]
[BlackTeam "Serbia"]
[WhiteTeamCountry "ENG"]
[BlackTeamCountry "SRB"]
[TimeControl "40/5400+30:1800+30"]

1. e4 {[%emt 0:00:05]} e6 {[%emt 0:00:07]} 2. d4 {[%emt 0:00:03]} d5 {[%emt 0:00:07]} 3. Nc3 {[%emt 0:00:03]} dxe4 {[%emt 0:00:19]} 4. Nxe4 {[%emt 0:00:08]} Bd7 {[%emt 0:00:07]} 5. Nf3 {[%emt 0:01:33]} Bc6 {[%emt 0:00:10]} 6. Bd3 {[%emt 0:00:08]} Nd7 {[%emt 0:00:12]} 7. Bg5 {[%emt 0:03:04]} Ngf6 {[%emt 0:01:37]} 8. Qe2 {[%emt 0:01:56]} Be7 {[%emt 0:01:29]} 9. Bxf6 {[%emt 0:05:18]} Nxf6 {[%emt 0:01:01]} 10. Nxf6+ {[%emt 0:01:10]} Bxf6 {[%emt 0:00:17]} 11. Be4 {[%emt 0:00:30]} Bxe4 {[%emt 0:05:15]} 12. Qxe4 {[%emt 0:00:10]} Qd5 {[%emt 0:01:04]} 13. Qxd5 {[%emt 0:00:46]} exd5 {[%emt 0:00:07]} 14. O-O-O {[%emt 0:10:44]} O-O-O {[%emt 0:04:18]} 15. Rhe1 {[%emt 0:00:52]} Rhe8 {[%emt 0:01:37]} 16. c3 {[%emt 0:10:12]} g6 {[%emt 0:02:04]} 17. Ne5 {[%emt 0:08:25]} Re7 {[%emt 0:22:46]} 18. f4 {[%emt 0:02:24]} Bg7 {[%emt 0:04:15]} 19. Kd2 {[%emt 0:04:25]} f6 {[%emt 0:02:49]} 20. Nd3 {[%emt 0:02:57]} Rde8 {[%emt 0:00:40]} 21. Rxe7 {[%emt 0:01:20]} Rxe7 {[%emt 0:00:09]} 22. Re1 {[%emt 0:00:06]} Rxe1 {[%emt 0:00:34]} 23. Kxe1 {[%emt 0:00:04]} Bf8 {[%emt 0:00:29]} 24. Ke2 {[%emt 0:02:08]} Kd7 {[%emt 0:00:40]} 25. b4 {[%emt 0:03:54]} b6 {[%emt 0:04:22]} 26. g4 {[%emt 0:06:10]} Bd6 {[%emt 0:01:05]} 27. h4 {[%emt 0:01:36]} a6 {[%emt 0:05:47]} 28. Kf3 {[%emt 0:07:37]} Ke6 {[%emt 0:03:29]} 29. a4 {[%emt 0:05:36]} a5 {[%emt 0:02:27]} 30. bxa5 {[%emt 0:04:42]} bxa5 {[%emt 0:00:28]} 31. g5 {[%emt 0:04:47]} fxg5 {[%emt 0:01:47]} 32. fxg5 {[%emt 0:02:59]} 1/2-1/2

[Event "EYTCC Open U18 2022"]
[Site "Thessaloniki"]
[Date "2022.07.12"]
[Round "1.21"]
[White "Zeneli, Klendi"]
[Black "Fromm, Marius"]
[Result "0-1"]
[ECO "C54"]
[WhiteElo "1921"]
[BlackElo "2391"]
[Annotator "ChessBase"]
[PlyCount "78"]
[EventDate "2022.07.12"]
[EventType "team-tourn"]
[EventCountry "GRE"]
[SourceTitle "playchess.com"]
[Source "ChessBase"]
[SourceQuality "1"]
[WhiteTeam "Albania"]
[BlackTeam "Germany"]
[WhiteTeamCountry "ALB"]
[BlackTeamCountry "GER"]
[TimeControl "40/5400+30:1800+30"]

1. e4 {[%emt 0:00:04]} e5 {[%emt 0:00:05]} 2. Nf3 {[%emt 0:00:06]} Nc6 {[%emt 0:00:04]} 3. Bc4 {[%emt 0:00:06]} Bc5 {[%emt 0:00:05]} 4. c3 {[%emt 0:00:38]} Nf6 {[%emt 0:00:05]} 5. d3 {[%emt 0:00:07]} d6 {[%emt 0:00:14]} 6. a4 {[%emt 0:00:32]} a5 {[%emt 0:01:15]} 7. Nbd2 {[%emt 0:01:25]} O-O {[%emt 0:02:09]} 8. O-O {[%emt 0:02:11]} h6 {[%emt 0:01:44]} 9. Re1 {[%emt 0:05:06]} Be6 {[%emt 0:10:53]} 10. Qb3 {[%emt 0:07:46]} Qd7 {[%emt 0:02:43]} 11. Nf1 {[%emt 0:02:05]} Bg4 {[%emt 0:15:19]} 12. N3d2 {[%emt 0:33:12]} Ne7 {[%emt 0:10:11]} 13. Ne3 {[%emt 0:02:56]} c6 {[%emt 0:01:46]} 14. Ndf1 {[%emt 0:05:51]} b5 {[%emt 0:06:05]} 15. axb5 {[%emt 0:06:23]} d5 {[%emt 0:00:14]} 16. exd5 {[%emt 0:01:36]} cxd5 {[%emt 0:00:16]} 17. Nxd5 {[%emt 0:02:29]} Nexd5 {[%emt 0:00:40]} 18. Bxd5 {[%emt 0:06:11]} Nxd5 {[%emt 0:01:24]} 19. Rxe5 {[%emt 0:00:16]} Be6 {[%emt 0:01:49]} 20. c4 {[%emt 0:01:05]} Bd4 {[%emt 0:00:59]} 21. Re1 {[%emt 0:03:23]} Nb4 {[%emt 0:01:05]} 22. Ne3 {[%emt 0:04:16]} Qxb5 {[%emt 0:01:31]} 23. Nc2 {[%emt 0:04:28]} Qc5 {[%emt 0:01:24]} 24. Be3 {[%emt 0:02:20]} Nxc2 {[%emt 0:02:47]} 25. Qxc2 {[%emt 0:00:10]} Rfd8 {[%emt 0:00:45]} 26. h3 {[%emt 0:02:14]} Bf5 {[%emt 0:00:58]} 27. Ra3 {[%emt 0:02:44]} Ra6 {[%emt 0:03:22]} 28. Qd2 {[%emt 0:01:13]} Bxe3 {[%emt 0:01:21]} 29. Rxe3 {[%emt 0:00:54]} Ra7 {[%emt 0:14:05]} 30. Qc3 {[%emt 0:02:16]} Bg6 {[%emt 0:09:43]} 31. Re5 {[%emt 0:01:10]} Qb6 {[%emt 0:01:26]} 32. c5 {[%emt 0:00:45]} Qc6 {[%emt 0:00:47]} 33. d4 {[%emt 0:00:19]} Rad7 {[%emt 0:03:23]} 34. d5 {[%emt 0:00:38]} Rxd5 {[%emt 0:00:16]} 35. Rxd5 {[%emt 0:00:13]} Rxd5 {[%emt 0:00:19]} 36. Rxa5 {[%emt 0:00:10]} Rd1+ {[%emt 0:00:13]} 37. Kh2 {[%emt 0:00:12]} Qc7+ {[%emt 0:00:13]} 38. g3 {[%emt 0:00:42]} Be4 {[%emt 0:00:08]} 39. f3 {[%emt 0:00:15]} Bxf3 {[%emt 0:00:32]} 0-1

[Event "EYTCC Open U18 2022"]
[Site "Thessaloniki"]
[Date "2022.07.12"]
[Round "1.22"]
[White "Deuer, Marius"]
[Black "Xhembulla, Aleksander"]
[Result "0-1"]
[ECO "E46"]
[WhiteElo "2338"]
[BlackElo "1909"]
[Annotator "ChessBase"]
[PlyCount "72"]
[EventDate "2022.07.12"]
[EventType "team-tourn"]
[EventCountry "GRE"]
[SourceTitle "playchess.com"]
[Source "ChessBase"]
[SourceQuality "1"]
[WhiteTeam "Germany"]
[BlackTeam "Albania"]
[WhiteTeamCountry "GER"]
[BlackTeamCountry "ALB"]
[TimeControl "40/5400+30:1800+30"]

1. d4 {[%emt 0:00:05]} Nf6 {[%emt 0:00:07]} 2. c4 {[%emt 0:00:05]} e6 {[%emt 0:00:06]} 3. Nc3 {[%emt 0:00:03]} Bb4 {[%emt 0:00:07]} 4. e3 {[%emt 0:00:02]} O-O {[%emt 0:00:08]} 5. Nge2 {[%emt 0:00:05]} Re8 {[%emt 0:00:09]} 6. a3 {[%emt 0:00:05]} Bf8 {[%emt 0:00:05]} 7. Ng3 {[%emt 0:00:03]} d5 {[%emt 0:00:19]} 8. Be2 {[%emt 0:00:06]} b6 {[%emt 0:01:32]} 9. O-O {[%emt 0:00:07]} Bb7 {[%emt 0:02:05]} 10. cxd5 {[%emt 0:00:27]} exd5 {[%emt 0:00:05]} 11. b4 {[%emt 0:00:15]} c6 {[%emt 0:07:21]} 12. Qb3 {[%emt 0:03:13]} Nbd7 {[%emt 0:03:27]} 13. f3 {[%emt 0:03:17]} a5 {[%emt 0:06:48]} 14. Rb1 {[%emt 0:02:41]} axb4 {[%emt 0:03:06]} 15. axb4 {[%emt 0:01:34]} Rb8 {[%emt 0:04:37]} 16. e4 {[%emt 0:19:11]} c5 {[%emt 0:02:33]} 17. Bf4 {[%emt 0:03:39]} cxd4 {[%emt 0:00:49]} 18. Bxb8 {[%emt 0:05:42]} Nxb8 {[%emt 0:04:21]} 19. Nxd5 {[%emt 0:12:30]} Bxd5 {[%emt 0:04:50]} 20. exd5 {[%emt 0:02:54]} Nxd5 {[%emt 0:00:11]} 21. Bb5 {[%emt 0:10:17]} Re3 {[%emt 0:15:31]} 22. Qc4 {[%emt 0:00:57]} Nxb4 {[%emt 0:04:23]} 23. Rfc1 {[%emt 0:08:36]} Nd3 {[%emt 0:07:10]} 24. Rd1 {[%emt 0:03:23]} Ne5 {[%emt 0:03:49]} 25. Qxd4 {[%emt 0:04:19]} Re1+ {[%emt 0:00:40]} 26. Bf1 {[%emt 0:11:08]} Qxd4+ {[%emt 0:00:12]} 27. Rxd4 {[%emt 0:00:06]} Rxb1 {[%emt 0:00:11]} 28. Rd8 {[%emt 0:00:27]} Nbc6 {[%emt 0:01:17]} 29. Rc8 {[%emt 0:00:55]} Ne7 {[%emt 0:02:23]} 30. Re8 {[%emt 0:03:12]} g6 {[%emt 0:00:32]} 31. h4 {[%emt 0:00:15]} h5 {[%emt 0:03:45]} 32. Ne4 {[%emt 0:03:25]} Kg7 {[%emt 0:00:41]} 33. Kf2 {[%emt 0:00:36]} Rb2+ {[%emt 0:01:56]} 34. Kg1 {[%emt 0:02:09]} N5c6 {[%emt 0:01:18]} 35. Ng5 {[%emt 0:01:11]} Nf5 {[%emt 0:00:34]} 36. Bd3 {[%emt 0:00:46]} Bc5+ {[%emt 0:05:13]} 0-1

[Event "EYTCC Open U18 2022"]
[Site "Thessaloniki"]
[Date "2022.07.12"]
[Round "1.23"]
[White "Ramaj, Ergit"]
[Black "Colbow, Collin"]
[Result "0-1"]
[ECO "B48"]
[WhiteElo "1980"]
[BlackElo "2325"]
[Annotator "ChessBase"]
[PlyCount "74"]
[EventDate "2022.07.12"]
[EventType "team-tourn"]
[EventCountry "GRE"]
[SourceTitle "playchess.com"]
[Source "ChessBase"]
[SourceQuality "1"]
[WhiteTeam "Albania"]
[BlackTeam "Germany"]
[WhiteTeamCountry "ALB"]
[BlackTeamCountry "GER"]
[TimeControl "40/5400+30:1800+30"]

1. e4 {[%emt 0:00:03]} c5 {[%emt 0:00:06]} 2. Nf3 {[%emt 0:00:06]} e6 {[%emt 0:00:06]} 3. d4 {[%emt 0:00:05]} cxd4 {[%emt 0:00:04]} 4. Nxd4 {[%emt 0:00:08]} Nc6 {[%emt 0:00:13]} 5. Nc3 {[%emt 0:00:18]} Qc7 {[%emt 0:00:14]} 6. Be3 {[%emt 0:00:11]} a6 {[%emt 0:00:06]} 7. g4 {[%emt 0:00:22]} h6 {[%emt 0:08:57]} 8. h4 {[%emt 0:21:19]} Nf6 {[%emt 0:03:23]} 9. Nxc6 {[%emt 0:16:33]} bxc6 {[%emt 0:10:56]} 10. Rg1 {[%emt 0:13:59]} d5 {[%emt 0:19:36]} 11. g5 {[%emt 0:04:00]} hxg5 {[%emt 0:03:30]} 12. hxg5 {[%emt 0:00:11]} Nxe4 {[%emt 0:03:48]} 13. Nxe4 {[%emt 0:00:59]} dxe4 {[%emt 0:00:07]} 14. Qd4 {[%emt 0:09:59]} Rh4 {[%emt 0:19:04]} 15. O-O-O {[%emt 0:04:23]} c5 {[%emt 0:02:54]} 16. Qc3 {[%emt 0:02:02]} Bb7 {[%emt 0:01:49]} 17. Bc4 {[%emt 0:01:41]} g6 {[%emt 0:07:25]} 18. Rd2 {[%emt 0:06:28]} Rd8 {[%emt 0:10:11]} 19. Rxd8+ {[%emt 0:02:16]} Qxd8 {[%emt 0:00:08]} 20. Rd1 {[%emt 0:01:42]} Qc7 {[%emt 0:00:57]} 21. Bb3 {[%emt 0:04:07]} Bd6 {[%emt 0:01:53]} 22. Qg7 {[%emt 0:04:15]} Bc6 {[%emt 0:04:47]} 23. Qg8+ {[%emt 0:03:02]} Ke7 {[%emt 0:00:01]} 24. Bxe6 {[%emt 0:00:58]} Kxe6 {[%emt 0:00:53]} 25. Qg7 {[%emt 0:01:43]} Be5 {[%emt 0:00:03]} 26. Qf8 {[%emt 0:00:09]} Bd6 {[%emt 0:00:08]} 27. Qg7 {[%emt 0:00:06]} Be5 {[%emt 0:00:04]} 28. Qf8 {[%emt 0:00:08]} Qb8 {[%emt 0:01:14]} 29. Qxc5 {[%emt 0:00:59]} Bxb2+ {[%emt 0:00:39]} 30. Kd2 {[%emt 0:00:36]} Qd6+ {[%emt 0:00:12]} 31. Qxd6+ {[%emt 0:00:51]} Kxd6 {[%emt 0:00:04]} 32. c3 {[%emt 0:00:33]} Ba3 {[%emt 0:00:09]} 33. c4 {[%emt 0:00:34]} Ke6 {[%emt 0:00:59]} 34. c5 {[%emt 0:00:41]} Bb2 {[%emt 0:01:15]} 35. Rb1 {[%emt 0:00:38]} Be5 {[%emt 0:00:09]} 36. Rb6 {[%emt 0:00:18]} Kd5 {[%emt 0:00:04]} 37. Rxa6 {[%emt 0:00:27]} Bf4 {[%emt 0:00:16]} 0-1

[Event "EYTCC Open U18 2022"]
[Site "Thessaloniki"]
[Date "2022.07.12"]
[Round "1.24"]
[White "Cherniaiev, Tykhon"]
[Black "Boci, Petro"]
[Result "1-0"]
[ECO "E18"]
[WhiteElo "2186"]
[BlackElo "1709"]
[Annotator "ChessBase"]
[PlyCount "61"]
[EventDate "2022.07.12"]
[EventType "team-tourn"]
[EventCountry "GRE"]
[SourceTitle "playchess.com"]
[Source "ChessBase"]
[SourceQuality "1"]
[WhiteTeam "Germany"]
[BlackTeam "Albania"]
[WhiteTeamCountry "GER"]
[BlackTeamCountry "ALB"]
[TimeControl "40/5400+30:1800+30"]

1. d4 {[%emt 0:00:03]} Nf6 {[%emt 0:00:10]} 2. Nf3 {[%emt 0:00:11]} e6 {[%emt 0:00:22]} 3. c4 {[%emt 0:00:09]} b6 {[%emt 0:00:12]} 4. g3 {[%emt 0:00:07]} Bb7 {[%emt 0:00:18]} 5. Bg2 {[%emt 0:00:06]} Be7 {[%emt 0:00:13]} 6. O-O {[%emt 0:00:15]} O-O {[%emt 0:00:16]} 7. Nc3 {[%emt 0:01:19]} d6 {[%emt 0:04:21]} 8. Qc2 {[%emt 0:00:38]} Nbd7 {[%emt 0:01:49]} 9. Rd1 {[%emt 0:01:15]} c5 {[%emt 0:06:10]} 10. b3 {[%emt 0:02:18]} cxd4 {[%emt 0:04:28]} 11. Nxd4 {[%emt 0:00:14]} Bxg2 {[%emt 0:01:02]} 12. Kxg2 {[%emt 0:00:05]} Qc7 {[%emt 0:05:35]} 13. Bb2 {[%emt 0:05:40]} a6 {[%emt 0:02:14]} 14. Rac1 {[%emt 0:06:04]} Rac8 {[%emt 0:03:05]} 15. e4 {[%emt 0:10:44]} Qb7 {[%emt 0:04:59]} 16. Qe2 {[%emt 0:06:03]} Nc5 {[%emt 0:05:32]} 17. f3 {[%emt 0:00:40]} Rfd8 {[%emt 0:07:45]} 18. Rc2 {[%emt 0:05:39]} g6 {[%emt 0:14:20]} 19. Rcd2 {[%emt 0:07:02]} h5 {[%emt 0:09:43]} 20. h4 {[%emt 0:04:51]} Ncd7 {[%emt 0:07:41]} 21. Nc2 {[%emt 0:06:44]} Ne5 {[%emt 0:01:40]} 22. a4 {[%emt 0:00:53]} Rd7 {[%emt 0:03:14]} 23. Ne1 {[%emt 0:13:50]} Rcd8 {[%emt 0:02:39]} 24. Nd3 {[%emt 0:02:16]} Qc6 {[%emt 0:04:37]} 25. Qf2 {[%emt 0:03:39]} Nxd3 {[%emt 0:01:28]} 26. Rxd3 {[%emt 0:00:55]} Qc5 {[%emt 0:01:37]} 27. Qd2 {[%emt 0:02:29]} Rc7 {[%emt 0:05:28]} 28. e5 {[%emt 0:00:43]} Ne8 {[%emt 0:00:45]} 29. Ne4 {[%emt 0:00:26]} Rcd7 {[%emt 0:02:30]} 30. Nc3 Qc6 {[%emt 0:00:04]} 31. Ne4 {[%emt 0:00:37]} 1-0